Cogmind - Beta 13 *** ADVENTURER MODE // 2024.04.06 @ 14:52:54 Player: triplej Result: Destroyed by P-60 Hacker with Shock Rifle Performance ------------- Evolutions (3) 1500 Regions Visited (6) 1200 Robots Destroyed (83) 415 Value Destroyed (3107) 3107 Prototype IDs (2) 40 Alien Tech Used (0) 0 Bonus (280) 280 TOTAL SCORE: 6542 Bonus ------- Pacifist 200 High Alert Combat Kills 80 Cogmind --------- Core Integrity 0/700 Matter 145/300 Energy 61/100 System Corruption 6% Temperature Cool (1) Movement Walking (130) Location -7/Storage Parts ------- > --- POWER (3) -------- (None) > --- PROPULSION (3) --- Improved Titanium Leg > --- UTILITY (4) ------ Visual Processing Unit Improved Weapon Shielding > --- WEAPON (3) ------- (None) > --- INVENTORY (5) ---- (None) Peak State ------------ > --- POWER ------------ Micro Nuclear Core Micro Nuclear Core Micro Nuclear Core > --- PROPULSION ------- Aluminum Leg Carbon-fiber Leg Cooled Airjet > --- UTILITY ---------- Advanced Heat Sink Visual Processing Unit Target Analyzer Corruption Screen > --- WEAPON ----------- Precision Beam Rifle Gauss Cannon Gauss Cannon > --- INVENTORY -------- Transmission Jammer Utility Shielding Improved Medium Armor Plating Autogun Heavy Missile Launcher [Rating: 48] Favorites ----------- Power Micro Nuclear Core Engine Ion Engine Power Core Micro Nuclear Core Propulsion Airjet Leg Titanium Leg Hover Unit Airjet Flight Unit Xenon Bombardment Thruster Utility Visual Processing Unit Device Improved Terrain Scanner Storage Small Storage Unit Processor Visual Processing Unit Protection Utility Shielding Weapon Heavy Ion Cannon Energy Gun Beam Rifle Energy Cannon Heavy Ion Cannon Ballistic Gun Light Assault Rifle Ballistic Cannon Gauss Cannon Launcher Heavy Missile Launcher Impact Weapon Hammer Slashing Weapon Katana Build | -11 -10 -10 -9 -8 -7 -7 ------- Run | Yrd Mat Min Mat Mat Fac Sto Slots Evolved 6 | . . . 2 2 2 . Power 2 | . . . . 1 1 . Propulsion 1 | . . . . . 1 . Utility 2 | . . . 2 . . . Weapon 1 | . . . . 1 . . Parts Attached 119 | 7 1 3 16 28 41 23 Power 21 | 1 . . 1 4 11 4 Engine 8 | 1 . . 1 3 3 . Core 13 | . . . . 1 8 4 Reactor . | . . . . . . . Propulsion 35 | 2 . . 10 2 14 7 Treads . | . . . . . . . Leg 24 | 2 . . 8 2 6 6 Wheel . | . . . . . . . Hover 10 | . . . 2 . 7 1 Flight 1 | . . . . . 1 . Utility 34 | 1 1 3 2 10 10 7 Device 15 | . . . 2 6 4 3 Storage 4 | 1 1 2 . . . . Processor 10 | . . 1 . 4 5 . Hackware . | . . . . . . . Protection 5 | . . . . . 1 4 Artifact . | . . . . . . . Weapon 29 | 3 . . 3 12 6 5 Energy Gun 4 | 1 . . . 1 1 1 Energy Cannon 6 | . . . . 6 . . Ballistic Gun 8 | 2 . . 2 2 . 2 Ballistic Cannon 7 | . . . . 1 5 1 Launcher 2 | . . . 1 . . 1 Special Weapon . | . . . . . . . Impact Weapon 1 | . . . . 1 . . Slashing Weapon 1 | . . . . 1 . . Piercing Weapon . | . . . . . . . Special Melee Weapon . | . . . . . . . Unidentified Prototypes 2 | . . . . . 1 1 Parts Lost 54 | . . . 4 12 15 23 Power 12 | . . . 1 3 3 5 Propulsion 17 | . . . 1 2 7 7 Utility 10 | . . . . 3 2 5 Weapon 15 | . . . 2 4 3 6 Highest Loss Streak 11 | . . . 3 10 8 11 To Critical Strikes 1 | . . . . 1 . . Average Slot Usage (%) 90 | . 85 97 91 79 95 90 Engine 6 | . 14 14 7 6 8 . Core 8 | . . . . . 12 20 Leg 13 | . 28 28 3 17 12 19 Hover 6 | . . . 14 . 9 2 Device 12 | . . . 21 8 11 11 Storage 5 | . 14 21 11 9 2 . Processor 12 | . . 4 11 13 13 11 Protection 1 | . . . . . . 5 Energy Gun 1 | . . . . 2 2 2 Energy Cannon 4 | . . . . 11 8 . Ballistic Gun 7 | . 28 28 20 5 . 1 Ballistic Cannon 3 | . . . . 1 3 10 Slashing Weapon 2 | . . . . 2 6 . Naked Turns . | . . . . . . . Heaviest Build 48 | 13 15 15 16 42 48 39 Greatest Support 55 | 20 20 20 34 43 44 55 Greatest Overweight (x) 12 | . . . 3 4 7 12 Average Overweight (x) . | . . . . . . . Largest Inventory Capacity 25 | 8 8 25 8 8 8 5 Average Capacity 6 | 6 8 8 8 8 6 5 Most Carried 8 | 5 8 8 8 8 8 5 Average Carried 5 | 4 6 6 7 6 5 3 Final Capacity 8 | 8 8 8 8 8 5 5 Final Carried 8 | 5 8 6 6 8 5 . Class Distribution -------------------- 44% | Mutant 29% | Scavenger-Mutant 6% | Tank 6% | Scavenger-Gunner 6% | Skirmisher 4% | Gunner Dominant Class ---------------- Mutant | -10/Materials Mutant | -10/Mines Mutant | -9/Materials Skirmisher | -8/Materials Scavenger-Mutant | -7/Factory Tank | -7/Storage Resources | -11 -10 -10 -9 -8 -7 -7 ----------- Run | Yrd Mat Min Mat Mat Fac Sto Matter Collected 2412 | 247 23 58 323 749 453 559 Remotely . | . . . . . . . Salvage Created 2839 | . . . 470 1018 983 368 Parts 166 | . . . 29 68 53 16 Haulers Intercepted . | . . . . . . . Recyclers Shooed 6 | . . . 1 2 1 2 Parts Field Recycled . | . . . . . . . Retrieved Matter . | . . . . . . . Parts Self-Destructed . | . . . . . . . Prevented . | . . . . . . . Kills | -11 -10 -10 -9 -8 -7 -7 ------- Run | Yrd Mat Min Mat Mat Fac Sto Combat Hostiles Destroyed 71 | . . . 14 25 20 12 Melee 19 | . . . . 5 14 . Guns 14 | . . . 7 6 . 1 Cannons 30 | . . . . 14 5 11 AOE 8 | . . . 7 . 1 . Classes Destroyed 11 | . . . 4 4 3 . Worker 3 | . . . . . 3 . Recycler 2 | . . . . 1 1 . Operator 1 | . . . . . 1 . Watcher 6 | . . . . 4 . 2 Swarmer 16 | . . . . 8 5 3 Grunt 29 | . . . 9 6 10 4 Brawler 3 | . . . 1 2 . . Duelist 5 | . . . 1 3 1 . Sentry 13 | . . . 3 4 1 5 Hunter 3 | . . . . 2 1 . Programmer 2 | . . . . . 2 . Best Kill Streak 5 | . . . 4 5 4 4 Combat Bots Only 5 | . . . 4 5 3 4 Max Kills in Single Turn 2 | . . . 2 1 1 1 Gunslinging . | . . . . . . . Exploded 2 | . . . 2 . 1 . Melee 1 | . . . . 1 1 . Uniques/NPCs Destroyed . | . . . . . . . Combat | -11 -10 -10 -9 -8 -7 -7 -------- Run | Yrd Mat Min Mat Mat Fac Sto Hostile Shots Fired 1146 | . . 1 63 239 218 625 Missed 398 | . . . 21 64 57 256 Damage Taken 6758 | . . 16 581 1815 1796 2550 Core 1168 | . . . 161 303 320 384 Absorbed by Shields . | . . . . . . . Redirected to Shielding 22 | . . . . . . 22 Ignored by Resistances 2052 | . . 4 166 532 525 825 Core Remaining (%) 75 | 100 . 100 59 44 . . Volleys Fired 174 | . . 2 34 69 25 44 Largest 3 | . . 2 2 3 3 3 Hottest 195 | . . 40 50 195 144 157 Shots Fired 340 | . . 4 58 127 53 98 Gun 134 | . . 4 42 61 . 27 Cannon 187 | . . . . 66 53 68 Launcher 19 | . . . 16 . . 3 Special . | . . . . . . . Kinetic 237 | . . 4 42 82 24 85 Thermal 84 | . . . . 45 29 10 Explosive 19 | . . . 16 . . 3 Electromagnetic . | . . . . . . . Robot Hit Streak 29 | . . 4 16 29 6 18 Robot Miss Streak 4 | . . . 1 2 4 3 Penetration Max 1 | . . . . . . 1 Secondary Targets . | . . . . . . . Shots Hit Robots 296 | . . 4 47 96 73 76 Core Hits 149 | . . . 28 63 33 25 Critical Kills 1 | . . . . 1 . . Critical Parts Destroyed 2 | . . . 1 1 . . Critical Strikes 22 | . . . 1 2 8 11 Destroy 2 | . . . 1 1 . . Blast 12 | . . . . . 1 11 Smash 1 | . . . . 1 . . Sever 7 | . . . . . 7 . Melee Attacks 56 | . . . . 11 45 . Impact 5 | . . . . 5 . . Slashing 51 | . . . . 6 45 . Piercing . | . . . . . . . Sneak Attacks 3 | . . . . . 3 . Combat Hostiles . | . . . . . . . Follow-up Attacks . | . . . . . . . Damage Inflicted 7766 | . . 40 1298 2177 2326 1925 Guns 1446 | . . 40 386 712 . 308 Cannons 3497 | . . . . 1208 817 1472 Explosions 1145 | . . . 912 . 99 134 Melee 1663 | . . . . 253 1410 . Ramming 15 | . . . . 4 . 11 Kinetic 3578 | . . 40 386 1189 318 1645 Thermal 1464 | . . . . 731 598 135 Explosive 1005 | . . . 871 . . 134 Electromagnetic 41 | . . . 41 . . . Impact 75 | . . . . 75 . . Slashing 1588 | . . . . 178 1410 . Piercing . | . . . . . . . Highest Corruption 6 | . . . 1 4 1 6 Average Corruption 1 | . . . 1 4 1 1 Corruption Purged . | . . . . . . . Corruption Blocked 7 | . . . . . 7 . Effects 27 | . . . 3 6 12 6 Message Errors 8 | . . . 1 3 3 1 Matter Fused 5 | . . . 1 1 2 1 Heat Flow Errors 3 | . . . . 1 1 1 Energy Discharges 2 | . . . . 1 1 . Parts Fused 1 | . . . . . 1 . Data Loss (minor) 1 | . . . . . 1 . Data Loss (major) 3 | . . . . . 2 1 Misfires 1 | . . . . . 1 . Alerts 2 | . . . . . . 2 Weapon Failures 1 | . . . 1 . . . Overload Shots . | . . . . . . . Overflow Damage 83 | . . . 6 31 43 3 Projectiles 19 | . . . . 3 13 3 Explosions 6 | . . . 6 . . . Melee 58 | . . . . 28 30 . Knockbacks 34 | . . . . 24 3 7 Impact . | . . . . . . . Kinetic 33 | . . . . 23 3 7 Secondary 1 | . . . . 1 . . Self-Inflicted Damage 173 | . . . 128 . . 45 Shots 6 | . . . 5 . . 1 Rammed . | . . . . . . . Targets Rammed 3 | . . . . 1 . 2 Kicked 3 | . . . . 1 . 2 Crushed . | . . . . . . . Highest Temperature 412 | . . . 17 406 407 412 Average Temperature 95 | . . . 7 133 89 74 Received Heat Transfer 2424 | . . . 234 441 729 1020 Effects 9 | . . . . 2 3 4 Shutdowns 5 | . . . . . 2 3 Interference 1 | . . . . . . 1 Matter Decay 2 | . . . . 2 . . Damage (minor) 1 | . . . . . 1 . Siege Activations . | . . . . . . . Robots Corrupted . | . . . . . . . Combat Hostiles . | . . . . . . . Parts Fried 1 | . . . 1 . . . Impact Corruptions . | . . . . . . . Robots Melted . | . . . . . . . Combat Hostiles . | . . . . . . . Parts Melted 1 | . . . . 1 . . Heat Transferred 2048 | . . . . 1036 716 296 Parts Sabotaged . | . . . . . . . Parts Stolen . | . . . . . . . Parts Stripped . | . . . . . . . Power Chain Reactions 1 | . . . 1 . . . Alert | -11 -10 -10 -9 -8 -7 -7 ------- Run | Yrd Mat Min Mat Mat Fac Sto Peak Influence 547 | . 15 19 415 547 221 340 Initial 135 | . . 4 6 93 135 85 Average 150 | . 12 14 126 285 97 189 Maximum Alert Level 2 | . . . 2 2 1 1 Low Security (%) 66 | 100 100 100 65 24 96 44 Level 1 28 | . . . 24 57 3 55 Level 2 5 | . . . 9 18 . . Level 3 . | . . . . . . . Level 4 . | . . . . . . . Level 5 . | . . . . . . . High Security . | . . . . . . . Max Security . | . . . . . . . Squads Dispatched 13 | . . . 2 4 3 4 Investigation 3 | . . . 1 1 . 1 Extermination 3 | . . . . . 2 1 Reinforcement 3 | . . . 1 . . 2 Assault . | . . . . . . . Garrison 4 | . . . . 3 1 . Intercept . | . . . . . . . Searches Triggered . | . . . . . . . Construction Impeded . | . . . . . . . Haulers Reinforced . | . . . . . . . Active Scanning Responses . | . . . . . . . Cargo Convoy Interrupts . | . . . . . . . Stealth | -11 -10 -10 -9 -8 -7 -7 --------- Run | Yrd Mat Min Mat Mat Fac Sto Distress Signals 11 | . 1 . 2 4 2 2 Communications Jammed 2 | . . . . . . 2 Distress Signals 2 | . . . . . . 2 Times Spotted 114 | . 1 4 20 35 32 22 Peak Tracking Total 16 | . 1 16 7 6 6 6 Tactical Retreats 8 | . . 1 3 1 2 1 Traps | -11 -10 -10 -9 -8 -7 -7 ------- Run | Yrd Mat Min Mat Mat Fac Sto Traps Triggered 8 | . . . 1 . 3 4 Indirectly . | . . . . . . . Trap Hack Attempts . | . . . . . . . Triggered . | . . . . . . . Disarmed . | . . . . . . . Reprogrammed . | . . . . . . . Reused . | . . . . . . . Traps Extracted . | . . . . . . . Installed . | . . . . . . . Triggered . | . . . . . . . Machines | -11 -10 -10 -9 -8 -7 -7 ---------- Run | Yrd Mat Min Mat Mat Fac Sto Machines Disabled 9 | . . . 2 . 1 6 Max in Single Turn 2 | . . . 2 . 1 1 Machines Repaired . | . . . . . . . Machines Dismantled . | . . . . . . . Machines Sabotaged . | . . . . . . . Overloaded Fab Kills . | . . . . . . . Hacking | -11 -10 -10 -9 -8 -7 -7 --------- Run | Yrd Mat Min Mat Mat Fac Sto Machines Accessed 8 | . . . . 2 . 6 Terminals 7 | . . . . 1 . 6 Fabricators . | . . . . . . . Repair Stations . | . . . . . . . Recycling Units 1 | . . . . 1 . . Scanalyzers . | . . . . . . . Garrison Access . | . . . . . . . Total Hacks 10 | . . . . 4 . 6 Successful 6 | . . . . . . 6 Failed 4 | . . . . 4 . . Catastrophic 1 | . . . . 1 . . Database Lockouts . | . . . . . . . Manual . | . . . . . . . Terminals 8 | . . . . 2 . 6 Fabricators . | . . . . . . . Repair Stations . | . . . . . . . Recycling Units 2 | . . . . 2 . . Scanalyzers . | . . . . . . . Garrison Access . | . . . . . . . Terminal Hacks 6 | . . . . . . 6 Open Door 4 | . . . . . . 4 Locate Traps 1 | . . . . . . 1 Recall Investigation 1 | . . . . . . 1 Fabricator Hacks . | . . . . . . . Repair Station Hacks . | . . . . . . . Recycling Unit Hacks . | . . . . . . . Scanalyzer . | . . . . . . . Garrison Access Hacks . | . . . . . . . Unauthorized Hacks . | . . . . . . . Terminals . | . . . . . . . Fabricators . | . . . . . . . Repair Stations . | . . . . . . . Recycling Units . | . . . . . . . Scanalyzers . | . . . . . . . Garrison Access . | . . . . . . . Data Cores Recovered 1 | . . . . . 1 . Used . | . . . . . . . Hacking Detections 3 | . . . . 2 . 1 Full Trace Events 1 | . . . . 1 . . Feedback Events . | . . . . . . . Feedback Blocked . | . . . . . . . Robot Schematics Acquired . | . . . . . . . Robots Built . | . . . . . . . Authchips . | . . . . . . . Time . | . . . . . . . Total Robot Build Rating . | . . . . . . . Part Schematics Acquired . | . . . . . . . Parts Built . | . . . . . . . Authchips . | . . . . . . . Time . | . . . . . . . Total Part Build Rating . | . . . . . . . Parts Repaired . | . . . . . . . Time . | . . . . . . . Parts Recycled . | . . . . . . . Recycled Matter . | . . . . . . . Retrieved Matter . | . . . . . . . Retrieved Components . | . . . . . . . Parts Scanalyzed . | . . . . . . . Part Schematics Acquired . | . . . . . . . Parts Damaged . | . . . . . . . Bothacking | -11 -10 -10 -9 -8 -7 -7 ------------ Run | Yrd Mat Min Mat Mat Fac Sto Used RIF Installer . | . . . . . . . Robots Hacked . | . . . . . . . Non-combat . | . . . . . . . Combat . | . . . . . . . Robot Hacks Applied . | . . . . . . . Relay Couplers Released . | . . . . . . . Fabnet Peak Effective % . | . . . . . . . Robots Rewired . | . . . . . . . Allies Hacked . | . . . . . . . Hacks Repelled . | . . . . . . . Allies | -11 -10 -10 -9 -8 -7 -7 -------- Run | Yrd Mat Min Mat Mat Fac Sto Total Allies 3 | . . . . . 3 . Largest Group 3 | . . . . . 3 . Highest-Rated Group 93 | . . . . . 93 . Highest-Rated Ally 31 | . . . . . 31 . Total Orders . | . . . . . . . Ally Attacks 42 | . . . . . 42 . Total Damage 590 | . . . . . 590 . Kills 2 | . . . . . 2 . Allies Corrupted . | . . . . . . . Allies Melted . | . . . . . . . Intel | -11 -10 -10 -9 -8 -7 -7 ------- Run | Yrd Mat Min Mat Mat Fac Sto Robot Analysis Total . | . . . . . . . Derelict Logs Recovered . | . . . . . . . Drone Launches 2 | . . . . . . 2 Drone Recoveries 2 | . . . . . . 2 Exploration | -11 -10 -10 -9 -8 -7 -7 ------------- Run | Yrd Mat Min Mat Mat Fac Sto Turns Passed 4565 | 69 183 62 921 833 1558 939 Spaces Moved 2737 | 52 127 42 550 386 1049 531 Core 162 | 14 . . 71 16 44 17 Treads . | . . . . . . . Legs 1696 | 38 127 42 87 370 518 514 Wheels . | . . . . . . . Hover 879 | . . . 392 . 487 . Flight . | . . . . . . . Fastest Speed 50 | 50 120 120 56 130 100 120 Average Speed 121 | 101 120 120 86 144 122 143 Slowest Speed 650 | 120 120 120 200 250 400 650 Overloaded Moves 7 | . . . . . 7 . Propulsion Burnouts . | . . . . . . . Robots Hopped . | . . . . . . . Cave-ins Triggered . | . . . . . . . Exploration Rate (%) 30 | 4 25 22 20 39 27 73 Regions Visited 6 Branch Regions 2 Pre-discovered Areas . | . . . . . . . Known Exits Taken . | . . . . . . . Unknown Exits Taken 6 | 1 1 1 1 1 1 . Scrap Searched 1 | . . 1 . . . . Spaces Dug 1 | . . . . 1 . . Terrain Destroyed 176 | . . . 80 10 15 71 Melee . | . . . . . . . Projectile 41 | . . . . 10 6 25 AOE 135 | . . . 80 . 9 46 Terrain Rammed . | . . . . . . . Walls Destroyed . | . . . . . . . Machines Disabled . | . . . . . . . Actions | -11 -10 -10 -9 -8 -7 -7 --------- Run | Yrd Mat Min Mat Mat Fac Sto Total 3599 | 67 158 50 940 537 1223 624 Wait 368 | . 24 . 319 12 10 3 Move 2731 | 51 126 41 549 385 1048 531 Hop . | . . . . . . . Pick Up 83 | 8 5 1 10 20 28 11 Fast Attach 44 | 4 1 3 6 8 14 8 Attach 45 | 3 . . 5 14 12 11 Detach 4 | . . 1 2 . . 1 Swap 30 | . . . 5 6 15 4 Drop 61 | 1 2 2 10 11 26 9 Fire 174 | . . 2 34 69 25 44 Melee 56 | . . . . 11 45 . Ram . | . . . . . . . Kick 3 | . . . . 1 . 2 Crush . | . . . . . . . Escape Stasis . | . . . . . . . Rewire . | . . . . . . . Trap . | . . . . . . . Miscellaneous . | . . . . . . . Route ------- -11/Scrapyard -10/Materials -10/Mines -9/Materials -8/Materials -7/Factory -7/Storage History --------- Turn | Location | Event 2 | -11/Scrapyard | Met Revision 17 9 | -11/Scrapyard | Discovered new exit (range 14) 70 | -11/Scrapyard | Entered Materials 123 | -10/Materials | Met 8R-AWN 220 | -10/Materials | Discovered new exit (range 15) 253 | -10/Materials | Entered Mines 255 | -10/Mines | Followed 8R-AWN into the Mines 271 | -10/Mines | Assembled infested the area 276 | -10/Mines | Assisted by a Guerilla fighting off Assembled 306 | -10/Mines | Discovered new exit (range 9) 315 | -10/Mines | Entered Materials 315 | -9/Materials | Evolved 2 slots: Utility x2 318 | -9/Materials | Build established: Mutant 1008 | -9/Materials | Lost 3 parts (1n2w) 1230 | -9/Materials | Discovered new exit (range 5) 1236 | -9/Materials | Entered another Materials area 1236 | -8/Materials | Evolved 2 slots: Power x1, Weapon x1 1567 | -8/Materials | Garrison activated, responded to threat 1727 | -8/Materials | Lost 10 parts (3p2n2u3w) 1925 | -8/Materials | Core integrity fell below 50% 1950 | -8/Materials | Discovered new exit (range 16) 2069 | -8/Materials | Entered Factory 2069 | -7/Factory | Evolved 2 slots: Power x1, Propulsion x1 2140 | -7/Factory | Build established: Scavenger-Mutant 2583 | -7/Factory | Build established: Mutant 2747 | -7/Factory | Lost 3 parts (1n1u1w) 2926 | -7/Factory | Allied Derelicts emerged from ambush trap array 3049 | -7/Factory | Build established: Scavenger-Mutant 3202 | -7/Factory | Lost 8 parts (3p2n1u2w) 3317 | -7/Factory | Garrison activated, responded to threat 3582 | -7/Factory | Discovered new exit (range 4) 3627 | -7/Factory | Entered Storage 3777 | -7/Storage | Core integrity fell below 50% 4319 | -7/Storage | Lost 3 parts (1p2w) 4511 | -7/Storage | Core integrity fell below 20% 4540 | -7/Storage | Lost 11 parts (3p3n3u2w) 4566 | -7/Storage | Destroyed by P-60 Hacker with Shock Rifle Last Messages --------------- System corrupted: IFF burst signal emitted. P-60 Hacker resets Y-54 Guardian, system corruption cleaned. Drone Bay destroyed. Triggered Shock Trap. The floor emits a surge of raw power. Triggered Shock Trap. The floor emits a surge of raw power. P-60 Hacker resets G-47 Trooper, system corruption cleaned. Connecting with Door Terminal... >>Open(Door) Sealed Heavy Doors opened. Critical hit (Burn: +37). Carbon-fiber Leg destroyed. P-60 Hacker resets Y-54 Guardian, system corruption cleaned. Imp. Medium Armor Plating destroyed. Imp. Titanium Leg destroyed. X8 VZB>TSRDILQILDVB5MRHFXS5BA Map ----- +----------------------------------------------------+ | | | | | | | | | | | | | | | | | | | | | ????????????????????????????????????????????????? | | ????????????????????????????????????????????????? | | ????????????????????????????????????????????????? | | ????????????????????????????????????????????????? | | ????????????????????????????????????????????????? | | ????????????????????????????????????????????????? | | ??????????????????????????????########??????????? | | ??????????????????????????????#!!! !!#??????????? | | ??????????????????????????????#!!! !!#??????????? | | ??????????????????????????????#! !!#??????????? | | ??????????????????????????????#! #??????????? | | ??????????????????????????????## ###??????????? | | ??????????????????????????????# T#???????????? | | ?????#????????????????????????# ##?#######???? | | ?????# ????????###################+#### ##### | | ?????# @ p ^ | | ?????# u Y Y | | ?????? a a g a Y | | #######+################+#########+#### ##### | | # ^ #???????????????????????#######???? | | ? ^ ^^ ##????????????????????????????????? | | ? """"" """"" #????????????????????????????????? | | ? """"" " " #????????????????????????????????? | | # """"" #????????????????????????????????? | | # #????????????????????????????????? | | ??####### = ##????????????????????????????????? | | ??######## ! ###???????????????????????????????? | | ??#!!! ### "T"################????????????????? | | ??#!!! #T## #????????????????? | | ??# ! " #????????????????? | | ??#!! # #????????????????? | | ??#!! ###+#+#########/######????????????????? | | ??#!!!!# ## # #?????????????????? | | ??########## """" # """" #?????????????????? | | ???????????# "????# "??"" #?????????????????? | | ???????????# "????# "???"" #?????????????????? | | ???????????# "????# ""???" #?????????????????? | | ???????????# "????# ""??" #?????????????????? | | ???????????# "????# """" #???????????####### | | ???????????# ????# #???????????# "T" | +----------------------------------------------------+ Best States ------------- Heat Dissipation 53 Coolant Potential 65 Energy Generation 35 Energy Capacity 500 Matter Stores 340 Matter Capacity 400 Sight Range 18 Robot Scan Range 15 Terrain Scan Range 16 Terrain Scan Density 10 Jamming Range 12 Additional Mass Support 9 Corruption Block 9 Armor Coverage 225 Resistance: KI 20 Resistance: TH 20 Resistance: EX 20 Resistance: EM 20 Resistance: I 20 Resistance: S 20 Resistance: P 20 Utility Shielding 33 Weapon Shielding 66 Melee Speed Boost 40 Evasion (%) 55 Targeting Accuracy 5 Melee Accuracy 6 Target Analysis 5 Armor Integrity Analysis 30 Offensive Hacking 10 Item Schematics ----------------- None Robot Schematics ------------------ None Fabricated ------------ Nothing Alien Tech Used ----------------- None Achievements -------------- GoHome() I Survived The Infestation No Signal Please Form A Line Slippery One Challenges ------------ None Game ------ Seed GravityReactionShearcannon Manual? 0 Play Time 01:13:58 Cumulative 3.0 hours Start 2024.04.06 @ 03:42:39 End 2024.04.06 @ 14:52:54 Sessions 2 Manual Loads 0 Difficulty Adventurer Special Mode None Game No. 7 Rogue 2 Adventurer 5 Explorer 0 Win Type - Total 0 Types 0/0/0/0/0/0/0/0/0 Lore% 0 Gallery% 9 Achievement% 9 Wizard Run 0 Options --------- Layout 1 ASCII 0 Keyboard 0 Movement Mouse Keybinds 0 Fullscreen 2 Font 32/Dina Map View 50x35 Zoom Use 0% Tactical HUD 0 Map Filters NONE Filters NONE Steam 1 RUN: 20522f6b-8655-45bd-8ca5-616838ea0985